[Event "Božićni turnir u VaraždinskimToplicama 26.12.2025."]
[Site "Varazdinske Toplice, Croatia"]
[Date "2025.12.26"]
[Round "1.1"]
[White "Damjanic-Fistrek, Leon"]
[Black "Segovic, Goran"]
[Result "0-1"]
[TimeControl "10"]
[WhiteFideId "556001282"]
[BlackFideId "14508842"]
[WhiteElo "1666"]
[BlackElo "2324"]

1. e4 {[%clk 00:09:59]} e5 {[%clk 00:09:59]} {[%emt 00:00:02]} 2. Nf3 {[%clk
00:09:57]} {[%emt 00:00:01]} Nc6 {[%clk 00:09:58]} {[%emt 00:00:02]} 3. Bc4
{[%clk 00:09:56]} {[%emt 00:00:01]} Nf6 {[%clk 00:09:56]} {[%emt 00:00:01]} 4.
O-O {[%clk 00:09:54]} {[%emt 00:00:02]} Be7 {[%clk 00:09:43]} {[%emt 00:00:13]}
5. Re1 {[%clk 00:09:31]} {[%emt 00:00:23]} O-O {[%clk 00:09:39]} {[%emt
00:00:05]} 6. c3 {[%clk 00:09:29]} d6 {[%clk 00:09:28]} {[%emt 00:00:11]} 7. d3
{[%clk 00:08:54]} {[%emt 00:00:35]} a6 {[%clk 00:09:22]} {[%emt 00:00:07]} 8.
Bg5 {[%clk 00:08:47]} {[%emt 00:00:06]} Na5 {[%clk 00:09:17]} {[%emt 00:00:05]}
9. Bb3 {[%clk 00:08:31]} {[%emt 00:00:16]} Nxb3 {[%clk 00:09:15]} {[%emt
00:00:02]} 10. Qxb3 {[%clk 00:08:30]} {[%emt 00:00:01]} Nd7 {[%clk 00:09:11]}
{[%emt 00:00:04]} 11. Bxe7 {[%clk 00:08:10]} {[%emt 00:00:21]} Qxe7 {[%clk
00:09:10]} {[%emt 00:00:01]} 12. Nbd2 {[%clk 00:08:04]} {[%emt 00:00:06]} Nc5
{[%clk 00:09:05]} {[%emt 00:00:04]} 13. Qc2 {[%clk 00:07:42]} {[%emt 00:00:22]}
Ne6 {[%clk 00:09:04]} {[%emt 00:00:02]} 14. d4 {[%clk 00:07:34]} {[%emt
00:00:08]} Nf4 {[%clk 00:09:00]} {[%emt 00:00:03]} 15. Nf1 {[%clk 00:06:44]}
{[%emt 00:00:50]} Bg4 {[%clk 00:08:54]} {[%emt 00:00:06]} 16. N3d2 {[%clk
00:06:16]} {[%emt 00:00:28]} exd4 {[%clk 00:08:39]} {[%emt 00:00:15]} 17. cxd4
{[%clk 00:06:12]} {[%emt 00:00:04]} Ne2+ {[%clk 00:08:38]} {[%emt 00:00:01]} 18.
Kh1 {[%clk 00:05:45]} {[%emt 00:00:28]} Nxd4 {[%clk 00:08:35]} {[%emt
00:00:03]} 19. Qd3 {[%clk 00:05:20]} {[%emt 00:00:25]} Nc6 {[%clk 00:08:31]}
{[%emt 00:00:03]} 20. Qg3 {[%clk 00:04:54]} {[%emt 00:00:26]} Be6 {[%clk
00:08:17]} {[%emt 00:00:14]} 21. Ne3 {[%clk 00:04:51]} {[%emt 00:00:04]} Qf6
{[%clk 00:08:08]} {[%emt 00:00:09]} 22. b3 {[%clk 00:04:37]} {[%emt 00:00:14]}
Rfe8 {[%clk 00:08:03]} {[%emt 00:00:04]} 23. f4 {[%clk 00:04:12]} {[%emt
00:00:25]} Qb2 {[%clk 00:07:03]} {[%emt 00:01:01]} 24. f5 {[%clk 00:03:44]}
{[%emt 00:00:27]} Qxd2 {[%clk 00:06:54]} {[%emt 00:00:09]} 25. fxe6 {[%clk
00:03:43]} {[%emt 00:00:02]} Rxe6 {[%clk 00:06:50]} {[%emt 00:00:04]} 26. Nd5
{[%clk 00:02:48]} {[%emt 00:00:54]} Rc8 {[%clk 00:06:41]} {[%emt 00:00:09]} 27.
Qf3 {[%clk 00:02:16]} {[%emt 00:00:33]} Ne5 {[%clk 00:06:17]} {[%emt 00:00:24]}
28. Qh5 {[%clk 00:02:04]} {[%emt 00:00:12]} c6 {[%clk 00:06:03]} {[%emt
00:00:14]} 29. Nb6 {[%clk 00:01:53]} {[%emt 00:00:11]} Rce8 {[%clk 00:05:53]}
{[%emt 00:00:09]} 30. Rf1 {[%clk 00:01:38]} {[%emt 00:00:15]} Rg6 {[%clk
00:05:44]} {[%emt 00:00:09]} 31. Qh3 {[%clk 00:01:23]} {[%emt 00:00:15]} Ng4
{[%clk 00:05:35]} {[%emt 00:00:09]} 32. Qf3 {[%clk 00:01:10]} {[%emt 00:00:13]}
f6 {[%clk 00:04:50]} {[%emt 00:00:45]} 33. Rad1 {[%clk 00:01:09]} {[%emt
00:00:02]} Qh6 {[%clk 00:04:36]} {[%emt 00:00:14]} 34. h3 {[%clk 00:00:56]}
{[%emt 00:00:12]} Ne3 {[%clk 00:04:33]} {[%emt 00:00:03]} 35. Rxd6 {[%clk
00:00:51]} {[%emt 00:00:05]} Nxf1 {[%clk 00:04:26]} {[%emt 00:00:07]} 36. Qxf1
{[%clk 00:00:50]} {[%emt 00:00:01]} Qe3 {[%clk 00:04:01]} {[%emt 00:00:25]} 37.
Qc4+ {[%clk 00:00:36]} {[%emt 00:00:15]} Kh8 {[%clk 00:04:00]} 38. Qf7 {[%clk
00:00:28]} {[%emt 00:00:07]} Qxe4 {[%clk 00:03:58]} {[%emt 00:00:03]} 39. Nd7
{[%clk 00:00:18]} {[%emt 00:00:11]} Qxg2# {[%clk 00:03:56]} {[%emt 00:00:01]}
0-1

[Event "Božićni turnir u VaraždinskimToplicama 26.12.2025."]
[Site "Varazdinske Toplice, Croatia"]
[Date "2025.12.26"]
[Round "1.2"]
[White "Petrus, Adrian"]
[Black "Filipovic, Dragan"]
[Result "1-0"]
[TimeControl "10"]
[WhiteFideId "14573652"]
[BlackFideId "14629119"]
[WhiteElo "1636"]
[BlackElo "1471"]

1. e4 {[%clk 00:09:57]} {[%emt 00:00:02]} Nc6 {[%clk 00:09:51]} {[%emt
00:00:10]} 2. Nf3 {[%clk 00:09:47]} {[%emt 00:00:11]} d6 {[%clk 00:09:45]}
{[%emt 00:00:05]} 3. d4 {[%clk 00:09:44]} {[%emt 00:00:02]} e6 {[%clk
00:09:37]} {[%emt 00:00:08]} 4. Nc3 {[%clk 00:09:28]} {[%emt 00:00:16]} a6
{[%clk 00:09:36]} {[%emt 00:00:02]} 5. h3 {[%clk 00:09:25]} {[%emt 00:00:03]}
g6 {[%clk 00:09:34]} {[%emt 00:00:02]} 6. Be3 {[%clk 00:09:22]} {[%emt
00:00:02]} Bg7 {[%clk 00:09:33]} {[%emt 00:00:02]} 7. Qd2 {[%clk 00:09:21]}
{[%emt 00:00:01]} e5 {[%clk 00:09:21]} {[%emt 00:00:12]} 8. O-O-O {[%clk
00:09:13]} {[%emt 00:00:08]} b5 {[%clk 00:09:15]} {[%emt 00:00:06]} 9. Nd5
{[%clk 00:08:54]} {[%emt 00:00:18]} exd4 {[%clk 00:08:45]} {[%emt 00:00:30]} 10.
Nxd4 {[%clk 00:08:49]} {[%emt 00:00:03]} Nxd4 {[%clk 00:08:37]} {[%emt
00:00:11]} 11. Bxd4 {[%clk 00:08:47]} {[%emt 00:00:02]} Nf6 {[%clk 00:08:32]}
{[%emt 00:00:04]} 12. Nxf6+ {[%clk 00:08:06]} {[%emt 00:00:41]} Bxf6 {[%clk
00:08:31]} {[%emt 00:00:02]} 13. Bxf6 {[%clk 00:08:00]} {[%emt 00:00:06]} Qxf6
{[%clk 00:08:29]} {[%emt 00:00:01]} 14. Qd5 {[%clk 00:07:58]} {[%emt 00:00:03]}
Rb8 {[%clk 00:08:21]} {[%emt 00:00:08]} 15. Qc6+ {[%clk 00:07:56]} {[%emt
00:00:02]} Bd7 {[%clk 00:08:13]} {[%emt 00:00:08]} 16. Qxc7 {[%clk 00:07:43]}
{[%emt 00:00:13]} Rc8 {[%clk 00:08:12]} 17. Qxd6 {[%clk 00:07:40]} {[%emt
00:00:03]} Qxd6 {[%clk 00:07:50]} {[%emt 00:00:22]} 18. Rxd6 {[%clk 00:07:37]}
{[%emt 00:00:03]} a5 {[%clk 00:07:42]} {[%emt 00:00:08]} 19. Be2 {[%clk
00:07:27]} {[%emt 00:00:10]} Ke7 {[%clk 00:07:41]} {[%emt 00:00:01]} 20. Rhd1
{[%clk 00:07:25]} Rc7 {[%clk 00:07:40]} {[%emt 00:00:03]} 21. c3 {[%clk
00:06:56]} {[%emt 00:00:29]} Rhc8 {[%clk 00:07:39]} {[%emt 00:00:01]} 22. e5
{[%clk 00:06:32]} {[%emt 00:00:24]} b4 {[%clk 00:07:37]} {[%emt 00:00:02]} 23.
Rxd7+ {[%clk 00:06:26]} {[%emt 00:00:05]} Rxd7 {[%clk 00:07:32]} {[%emt
00:00:06]} 24. Rxd7+ {[%clk 00:06:24]} {[%emt 00:00:02]} Kxd7 {[%clk 00:07:26]}
{[%emt 00:00:06]} 25. Bg4+ {[%clk 00:06:23]} {[%emt 00:00:01]} Kc7 {[%clk
00:07:25]} 26. Bxc8 {[%clk 00:06:22]} {[%emt 00:00:01]} Kxc8 {[%clk 00:07:24]}
{[%emt 00:00:02]} 27. cxb4 {[%clk 00:06:18]} {[%emt 00:00:04]} axb4 {[%clk
00:07:23]} 28. Kd2 {[%clk 00:06:16]} {[%emt 00:00:02]} Kd7 {[%clk 00:07:22]}
{[%emt 00:00:01]} 29. Kd3 {[%clk 00:06:16]} Ke6 {[%clk 00:07:21]} 30. Ke4
{[%clk 00:06:15]} h6 {[%clk 00:07:04]} {[%emt 00:00:18]} 31. a4 {[%clk
00:06:11]} {[%emt 00:00:04]} bxa3 {[%emt 00:00:07]} 32. bxa3 {[%clk 00:06:05]}
{[%emt 00:00:02]} Kd7 {[%clk 00:06:48]} {[%emt 00:00:13]} 33. Kd5 {[%clk
00:06:02]} {[%emt 00:00:02]} Kc7 {[%clk 00:06:46]} {[%emt 00:00:02]} 34. f4
{[%clk 00:05:58]} {[%emt 00:00:04]} h5 {[%clk 00:06:39]} {[%emt 00:00:07]} 35.
g4 {[%clk 00:05:57]} {[%emt 00:00:02]} h4 {[%clk 00:06:34]} {[%emt 00:00:06]}
36. f5 {[%clk 00:05:54]} {[%emt 00:00:02]} 1-0

[Event "Božićni turnir u VaraždinskimToplicama 26.12.2025."]
[Site "Varazdinske Toplice, Croatia"]
[Date "2025.12.26"]
[Round "1.3"]
[White "Pisonic, Ivan"]
[Black "Vidovic, Sasa"]
[Result "0-1"]
[TimeControl "10"]
[WhiteFideId "14576503"]
[BlackFideId "14505010"]
[WhiteElo "1480"]
[BlackElo "2202"]

1. e4 {[%clk 00:09:58]} {[%emt 00:00:02]} d6 {[%clk 00:09:59]} {[%emt
00:00:01]} 2. Nf3 {[%clk 00:09:56]} {[%emt 00:00:02]} Nf6 {[%clk 00:09:59]} 3.
Nc3 {[%clk 00:09:54]} {[%emt 00:00:03]} e5 {[%clk 00:09:57]} {[%emt 00:00:01]}
4. d4 {[%clk 00:09:51]} {[%emt 00:00:03]} exd4 {[%clk 00:09:56]} {[%emt
00:00:01]} 5. Nxd4 {[%clk 00:09:49]} {[%emt 00:00:02]} Be7 {[%clk 00:09:55]} 6.
Be2 {[%clk 00:09:41]} {[%emt 00:00:09]} O-O {[%clk 00:09:53]} {[%emt 00:00:02]}
7. O-O {[%clk 00:09:40]} {[%emt 00:00:02]} Re8 {[%clk 00:09:47]} {[%emt
00:00:05]} 8. Re1 {[%clk 00:09:37]} {[%emt 00:00:02]} c6 {[%clk 00:09:46]}
{[%emt 00:00:02]} 9. b3 {[%clk 00:09:22]} {[%emt 00:00:15]} a5 {[%clk
00:09:44]} {[%emt 00:00:02]} 10. Bb2 {[%clk 00:09:17]} {[%emt 00:00:05]} Na6
{[%clk 00:09:43]} 11. a3 {[%clk 00:09:05]} {[%emt 00:00:12]} Nc5 {[%clk
00:09:41]} {[%emt 00:00:02]} 12. Bd3 {[%clk 00:08:38]} {[%emt 00:00:27]} Bf8
{[%clk 00:09:30]} {[%emt 00:00:11]} 13. Kh1 {[%clk 00:08:10]} {[%emt 00:00:28]}
Ng4 {[%clk 00:09:16]} {[%emt 00:00:15]} 14. Qd2 {[%clk 00:07:50]} {[%emt
00:00:19]} Qh4 {[%clk 00:09:06]} {[%emt 00:00:10]} 15. h3 {[%clk 00:07:34]}
{[%emt 00:00:16]} Nxf2+ {[%clk 00:08:38]} {[%emt 00:00:28]} 16. Kg1 {[%clk
00:07:12]} {[%emt 00:00:22]} Nfxd3 {[%clk 00:08:07]} {[%emt 00:00:31]} 17. cxd3
{[%clk 00:07:00]} {[%emt 00:00:12]} g6 {[%clk 00:06:59]} {[%emt 00:01:08]} 18.
b4 {[%clk 00:06:45]} {[%emt 00:00:15]} Ne6 {[%clk 00:06:27]} {[%emt 00:00:31]}
19. Nf3 {[%clk 00:06:11]} {[%emt 00:00:34]} Qh6 {[%clk 00:05:53]} {[%emt
00:00:35]} 20. Qxh6 {[%clk 00:05:50]} {[%emt 00:00:21]} Bxh6 {[%clk 00:05:52]}
{[%emt 00:00:01]} 21. Ne2 {[%clk 00:05:40]} {[%emt 00:00:09]} Bg7 {[%clk
00:05:45]} {[%emt 00:00:08]} 22. Bxg7 {[%clk 00:05:09]} {[%emt 00:00:31]} Kxg7
{[%clk 00:05:44]} {[%emt 00:00:02]} 23. Ned4 {[%clk 00:04:55]} {[%emt
00:00:14]} Nf4 {[%clk 00:05:36]} {[%emt 00:00:07]} 24. bxa5 {[%clk 00:04:21]}
{[%emt 00:00:34]} Nxd3 {[%clk 00:05:27]} {[%emt 00:00:09]} 25. Re2 {[%clk
00:04:19]} {[%emt 00:00:02]} Nf4 {[%clk 00:05:19]} {[%emt 00:00:08]} 26. Ree1
{[%clk 00:04:08]} {[%emt 00:00:11]} Rxa5 {[%clk 00:05:16]} {[%emt 00:00:04]} 27.
Nb3 {[%clk 00:03:54]} {[%emt 00:00:14]} Ra4 {[%clk 00:05:09]} {[%emt 00:00:07]}
28. Nbd2 {[%clk 00:03:50]} {[%emt 00:00:03]} Be6 {[%clk 00:05:00]} {[%emt
00:00:09]} 29. e5 {[%clk 00:03:37]} {[%emt 00:00:14]} Nd3 {[%clk 00:04:30]}
{[%emt 00:00:29]} 30. Re3 {[%clk 00:03:26]} {[%emt 00:00:11]} Nxe5 {[%clk
00:04:29]} {[%emt 00:00:02]} 31. Nxe5 {[%clk 00:03:21]} {[%emt 00:00:04]} dxe5
{[%clk 00:04:28]} 32. Rxe5 {[%clk 00:03:18]} {[%emt 00:00:03]} Rea8 {[%clk
00:04:14]} {[%emt 00:00:14]} 33. Re3 {[%clk 00:03:03]} {[%emt 00:00:15]} Bd5
{[%clk 00:04:11]} {[%emt 00:00:03]} 34. Nb1 {[%clk 00:02:50]} {[%emt 00:00:12]}
b5 {[%clk 00:03:59]} {[%emt 00:00:13]} 35. Nc3 {[%clk 00:02:48]} {[%emt
00:00:02]} Rxa3 {[%clk 00:03:58]} {[%emt 00:00:01]} 36. Rxa3 {[%clk 00:02:44]}
{[%emt 00:00:04]} Rxa3 {[%clk 00:03:57]} 37. Nxd5 {[%clk 00:02:43]} {[%emt
00:00:02]} Ra1+ {[%clk 00:03:56]} 38. Kh2 {[%clk 00:02:36]} {[%emt 00:00:06]}
cxd5 {[%clk 00:03:54]} {[%emt 00:00:02]} 39. Rb3 {[%clk 00:02:27]} {[%emt
00:00:09]} Ra5 {[%clk 00:03:51]} {[%emt 00:00:03]} 40. Kg3 {[%clk 00:02:24]}
{[%emt 00:00:03]} Kf6 {[%clk 00:03:48]} {[%emt 00:00:03]} 41. Kf4 {[%clk
00:02:21]} {[%emt 00:00:03]} Ra4+ {[%clk 00:03:47]} 42. Ke3 {[%clk 00:02:20]}
{[%emt 00:00:01]} b4 {[%clk 00:03:47]} 43. Kd4 {[%clk 00:02:18]} {[%emt
00:00:01]} Ke6 {[%clk 00:03:43]} {[%emt 00:00:05]} 44. Re3+ {[%clk 00:02:08]}
{[%emt 00:00:09]} Kd6 {[%clk 00:03:42]} {[%emt 00:00:02]} 45. Re8 {[%clk
00:01:55]} {[%emt 00:00:12]} b3+ {[%clk 00:03:29]} {[%emt 00:00:13]} 46. Kc3
{[%clk 00:01:54]} Ra2 {[%clk 00:03:28]} {[%emt 00:00:01]} 47. Kxb3 {[%clk
00:01:33]} {[%emt 00:00:21]} Rxg2 {[%clk 00:03:26]} {[%emt 00:00:02]} 48. Re3
{[%clk 00:01:14]} {[%emt 00:00:19]} f5 {[%clk 00:03:17]} {[%emt 00:00:09]} 49.
Kc3 {[%clk 00:00:53]} {[%emt 00:00:21]} f4 {[%clk 00:03:15]} {[%emt 00:00:01]}
50. Rf3 {[%clk 00:00:52]} {[%emt 00:00:02]} Rg3 {[%clk 00:03:14]} {[%emt
00:00:01]} 0-1

[Event "Božićni turnir u VaraždinskimToplicama 26.12.2025."]
[Site "Varazdinske Toplice, Croatia"]
[Date "2025.12.26"]
[Round "1.4"]
[White "Radic, Goran"]
[Black "Veber, Tibor"]
[Result "1-0"]
[TimeControl "10"]
[WhiteFideId "14533995"]
[BlackFideId "14654873"]
[WhiteElo "2051"]
[BlackElo "1334"]

1. d4 {[%clk 00:09:56]} {[%emt 00:00:04]} Nf6 {[%clk 00:09:56]} {[%emt
00:00:04]} 2. Nc3 {[%clk 00:09:54]} {[%emt 00:00:03]} d5 {[%clk 00:09:51]}
{[%emt 00:00:04]} 3. Bf4 {[%clk 00:09:52]} {[%emt 00:00:03]} e6 {[%clk
00:09:43]} {[%emt 00:00:08]} 4. e3 {[%clk 00:09:40]} {[%emt 00:00:12]} c6
{[%clk 00:09:27]} {[%emt 00:00:16]} 5. Bd3 {[%clk 00:09:32]} {[%emt 00:00:07]}
Nbd7 {[%clk 00:09:23]} {[%emt 00:00:04]} 6. h3 {[%clk 00:09:27]} {[%emt
00:00:05]} Nb6 {[%clk 00:09:21]} {[%emt 00:00:03]} 7. Nf3 {[%clk 00:09:18]}
{[%emt 00:00:08]} Be7 {[%clk 00:09:07]} {[%emt 00:00:14]} 8. Qe2 {[%clk
00:09:10]} {[%emt 00:00:09]} Bd6 {[%clk 00:08:09]} {[%emt 00:00:58]} 9. Bxd6
{[%clk 00:08:55]} {[%emt 00:00:14]} Qxd6 {[%clk 00:08:06]} {[%emt 00:00:03]} 10.
O-O {[%clk 00:08:47]} {[%emt 00:00:09]} O-O {[%clk 00:08:01]} {[%emt 00:00:05]}
11. e4 {[%clk 00:08:45]} {[%emt 00:00:01]} dxe4 {[%clk 00:07:54]} {[%emt
00:00:07]} 12. Nxe4 {[%clk 00:08:41]} {[%emt 00:00:05]} Nbd5 {[%clk 00:06:50]}
{[%emt 00:01:04]} 13. Nxd6 {[%clk 00:08:34]} {[%emt 00:00:07]} Rd8 {[%clk
00:06:45]} {[%emt 00:00:05]} 14. Ne4 {[%clk 00:08:23]} {[%emt 00:00:10]} Nf4
{[%clk 00:06:43]} {[%emt 00:00:03]} 15. Nxf6+ {[%clk 00:08:19]} {[%emt
00:00:04]} gxf6 {[%clk 00:06:41]} {[%emt 00:00:01]} 16. Qe4 {[%clk 00:08:10]}
{[%emt 00:00:09]} Ng6 {[%clk 00:06:40]} {[%emt 00:00:02]} 17. h4 {[%clk
00:08:01]} {[%emt 00:00:09]} f5 {[%clk 00:06:38]} {[%emt 00:00:01]} 18. Qe3
{[%clk 00:07:57]} {[%emt 00:00:05]} f4 {[%clk 00:06:37]} {[%emt 00:00:01]} 19.
Qe4 {[%clk 00:07:53]} {[%emt 00:00:04]} f5 {[%clk 00:06:34]} {[%emt 00:00:03]}
20. Qe2 {[%clk 00:07:50]} {[%emt 00:00:03]} h6 {[%clk 00:06:25]} {[%emt
00:00:08]} 21. h5 {[%clk 00:07:48]} {[%emt 00:00:02]} Ne7 {[%clk 00:06:22]}
{[%emt 00:00:03]} 22. Rfe1 {[%clk 00:07:41]} {[%emt 00:00:07]} Nd5 {[%clk
00:06:17]} {[%emt 00:00:05]} 23. Ne5 {[%clk 00:07:30]} {[%emt 00:00:11]} Kh7
{[%clk 00:06:11]} {[%emt 00:00:06]} 24. Ng6 {[%clk 00:07:25]} {[%emt 00:00:05]}
Rg8 {[%clk 00:06:08]} {[%emt 00:00:04]} 25. c4 {[%clk 00:07:19]} {[%emt
00:00:05]} Nf6 {[%clk 00:06:04]} {[%emt 00:00:04]} 26. Nxf4 {[%clk 00:07:14]}
{[%emt 00:00:06]} Bd7 {[%clk 00:05:50]} {[%emt 00:00:14]} 27. Qe5 {[%clk
00:07:08]} {[%emt 00:00:05]} Raf8 {[%clk 00:05:46]} {[%emt 00:00:04]} 28. Nxe6
{[%clk 00:07:03]} {[%emt 00:00:06]} Bxe6 {[%clk 00:05:41]} {[%emt 00:00:05]} 29.
Qxe6 {[%clk 00:07:01]} {[%emt 00:00:01]} Rg7 {[%clk 00:05:38]} {[%emt
00:00:04]} 30. Bxf5+ {[%clk 00:06:57]} {[%emt 00:00:04]} Kh8 {[%clk 00:05:36]}
{[%emt 00:00:02]} 31. Bg6 {[%clk 00:06:55]} {[%emt 00:00:02]} Rfg8 {[%clk
00:05:25]} {[%emt 00:00:11]} 32. Qxf6 {[%clk 00:06:52]} {[%emt 00:00:03]} 1-0

[Event "Božićni turnir u VaraždinskimToplicama 26.12.2025."]
[Site "Varazdinske Toplice, Croatia"]
[Date "2025.12.26"]
[Round "1.5"]
[White "Kunovac, Matija"]
[Black "Zelenika, Zoran"]
[Result "0-1"]
[TimeControl "10"]
[WhiteFideId "79325998"]
[BlackFideId "14534452"]
[WhiteElo "1652"]
[BlackElo "2031"]

1. e4 {[%clk 00:09:57]} {[%emt 00:00:02]} c5 {[%clk 00:09:59]} {[%emt
00:00:02]} 2. Nf3 {[%clk 00:09:56]} {[%emt 00:00:01]} e6 {[%clk 00:09:58]} 3.
c3 {[%clk 00:09:47]} {[%emt 00:00:10]} d5 {[%clk 00:09:56]} {[%emt 00:00:01]} 4.
exd5 {[%clk 00:09:46]} {[%emt 00:00:02]} exd5 {[%clk 00:09:55]} {[%emt
00:00:02]} 5. d4 {[%clk 00:09:45]} {[%emt 00:00:01]} Nc6 {[%clk 00:09:54]}
{[%emt 00:00:01]} 6. Bf4 {[%clk 00:09:36]} {[%emt 00:00:09]} Bd6 {[%clk
00:09:41]} {[%emt 00:00:12]} 7. Bg3 {[%clk 00:09:22]} {[%emt 00:00:14]} Bxg3
{[%clk 00:09:23]} {[%emt 00:00:18]} 8. hxg3 {[%clk 00:09:18]} {[%emt 00:00:05]}
Bg4 {[%clk 00:09:15]} {[%emt 00:00:06]} 9. Nbd2 {[%clk 00:08:22]} {[%emt
00:00:57]} cxd4 {[%clk 00:09:06]} {[%emt 00:00:09]} 10. cxd4 {[%clk 00:08:20]}
{[%emt 00:00:02]} Qa5 {[%clk 00:08:59]} {[%emt 00:00:06]} 11. Qb3 {[%clk
00:07:12]} {[%emt 00:01:09]} Nge7 {[%clk 00:08:51]} {[%emt 00:00:07]} 12. Ne5
{[%clk 00:06:21]} {[%emt 00:00:52]} Be6 {[%clk 00:08:13]} {[%emt 00:00:38]} 13.
Qb5 {[%clk 00:05:38]} {[%emt 00:00:43]} Qxb5 {[%clk 00:07:27]} {[%emt
00:00:46]} 14. Bxb5 {[%clk 00:05:36]} {[%emt 00:00:02]} O-O {[%clk 00:07:14]}
{[%emt 00:00:13]} 15. Bd3 {[%clk 00:05:15]} {[%emt 00:00:20]} g6 {[%clk
00:06:33]} {[%emt 00:00:41]} 16. Nef3 {[%clk 00:04:48]} {[%emt 00:00:28]} Bf5
{[%clk 00:06:19]} {[%emt 00:00:14]} 17. Bxf5 Nxf5 {[%clk 00:06:17]} 18. Nb3
{[%emt 00:00:08]} a5 {[%clk 00:05:45]} {[%emt 00:00:30]} 19. a4 {[%clk
00:04:09]} {[%emt 00:00:18]} Nb4 {[%clk 00:05:37]} {[%emt 00:00:07]} 20. Kd2
{[%clk 00:04:04]} {[%emt 00:00:06]} Nd6 {[%clk 00:05:22]} {[%emt 00:00:15]} 21.
Ng5 {[%clk 00:03:13]} {[%emt 00:00:51]} f6 {[%clk 00:04:39]} {[%emt 00:00:43]}
22. Rxh7 {[%emt 00:01:02]} fxg5 {[%clk 00:04:29]} {[%emt 00:00:08]} 23. Rah1
{[%clk 00:02:12]} Ne4+ {[%clk 00:03:58]} {[%emt 00:00:31]} 24. Kc1 {[%clk
00:01:33]} {[%emt 00:00:40]} Nd3+ {[%clk 00:03:43]} {[%emt 00:00:14]} 25. Kb1
{[%clk 00:01:27]} {[%emt 00:00:07]} Ndxf2 {[%clk 00:03:36]} {[%emt 00:00:07]}
26. Rh8+ {[%clk 00:01:03]} {[%emt 00:00:25]} Kg7 {[%clk 00:03:34]} {[%emt
00:00:01]} 27. R8h7+ {[%clk 00:00:59]} {[%emt 00:00:04]} Kf6 {[%clk 00:03:30]}
{[%emt 00:00:01]} 28. Rf1 {[%clk 00:00:57]} {[%emt 00:00:05]} Ke6 {[%clk
00:03:22]} {[%emt 00:00:07]} 29. Rxb7 {[%clk 00:00:52]} {[%emt 00:00:05]} Rab8
{[%clk 00:03:20]} {[%emt 00:00:03]} 30. Rxb8 {[%clk 00:00:49]} {[%emt
00:00:03]} Rxb8 {[%clk 00:03:19]} {[%emt 00:00:02]} 31. Nc5+ {[%clk 00:00:48]}
{[%emt 00:00:01]} Nxc5 {[%clk 00:03:16]} {[%emt 00:00:03]} 32. dxc5 {[%clk
00:00:44]} {[%emt 00:00:03]} Ne4 {[%clk 00:03:12]} {[%emt 00:00:03]} 33. Re1
{[%clk 00:00:42]} {[%emt 00:00:03]} Rb4 {[%clk 00:03:07]} {[%emt 00:00:05]} 34.
Kc2 {[%clk 00:00:35]} {[%emt 00:00:08]} Rc4+ {[%clk 00:03:01]} {[%emt
00:00:05]} 35. Kb3 {[%clk 00:00:33]} {[%emt 00:00:03]} Rxc5 {[%clk 00:02:57]}
{[%emt 00:00:03]} 36. Ka3 {[%clk 00:00:30]} {[%emt 00:00:04]} Kd6 {[%clk
00:02:53]} {[%emt 00:00:03]} 37. Re3 {[%clk 00:00:26]} {[%emt 00:00:04]} Rc4
{[%clk 00:02:47]} {[%emt 00:00:05]} 38. b3 {[%clk 00:00:25]} {[%emt 00:00:03]}
Rc3 {[%clk 00:02:43]} {[%emt 00:00:03]} 39. Rxc3 {[%clk 00:00:23]} {[%emt
00:00:03]} Nxc3 {[%clk 00:02:41]} {[%emt 00:00:01]} 40. b4 {[%clk 00:00:22]}
axb4+ {[%clk 00:02:19]} {[%emt 00:00:22]} 41. Kxb4 {[%clk 00:00:21]} {[%emt
00:00:01]} Nxa4 {[%clk 00:01:59]} {[%emt 00:00:21]} 42. Kxa4 {[%clk 00:00:18]}
{[%emt 00:00:02]} Ke5 {[%clk 00:01:58]} 43. Kb3 {[%clk 00:00:18]} {[%emt
00:00:01]} Ke4 {[%clk 00:01:57]} 44. Kc3 {[%clk 00:00:17]} {[%emt 00:00:01]}
Ke3 {[%clk 00:01:55]} 45. Kc2 {[%emt 00:00:02]} Kf2 {[%clk 00:01:47]} {[%emt
00:00:08]} 46. Kd3 {[%clk 00:00:15]} {[%emt 00:00:01]} Kxg2 {[%clk 00:01:45]}
{[%emt 00:00:01]} 47. Kd4 {[%clk 00:00:14]} Kxg3 {[%clk 00:01:44]} {[%emt
00:00:02]} 48. Kxd5 {[%clk 00:00:13]} Kf3 {[%clk 00:01:43]} {[%emt 00:00:02]}
49. Ke5 {[%clk 00:00:12]} g4 {[%clk 00:01:41]} {[%emt 00:00:02]} 0-1